Workbook

Sheet DB_MatchLV
A1: Id(int) | B1: Star(arrint) | C1: Name(str) | D1: Star2(int) | E1: AwardType1(int) | F1: AwardId1(int) | G1: Number1(int) | H1: AwardType2(int) | I1: AwardId2(int) | J1: Number2(int) | K1: AwardType3(int) | L1: AwardId3(int) | M1: Number3(int)
A2: 序号 | B2: 星级 | C2: 名称 | D2: 继承段位 | E2: 奖励1类型 | F2: 奖励1id | G2: 奖励1数量 | H2: 奖励2类型 | I2: 奖励2id | J2: 奖励2数量 | K2: 奖励3类型 | L2: 奖励3id | M2: 奖励3数量
A3: 1 | B3: 1|5 | C3: 玄铁I | D3: 1 | E3: 1 | F3: 0 | G3: 10000 | H3: 2 | I3: 0 | J3: 0 | K3: 3 | L3: 30001 | M3: 0
A4: 2 | B4: 6|10 | C4: 玄铁II | D4: 6 | E4: 1 | F4: 0 | G4: 15000 | H4: 2 | I4: 0 | J4: 0 | K4: 3 | L4: 30001 | M4: 0
A5: 3 | B5: 11|15 | C5: 玄铁III | D5: 11 | E5: 1 | F5: 0 | G5: 20000 | H5: 2 | I5: 0 | J5: 0 | K5: 3 | L5: 30001 | M5: 0
A6: 4 | B6: 16|20 | C6: 玄铁IV | D6: 16 | E6: 1 | F6: 0 | G6: 25000 | H6: 2 | I6: 0 | J6: 0 | K6: 3 | L6: 30001 | M6: 0
A7: 5 | B7: 21|25 | C7: 玄铁V | D7: 21 | E7: 1 | F7: 0 | G7: 30000 | H7: 2 | I7: 0 | J7: 0 | K7: 3 | L7: 30001 | M7: 0
A8: 6 | B8: 26|30 | C8: 青铜I | D8: 26 | E8: 1 | F8: 0 | G8: 35000 | H8: 2 | I8: 0 | J8: 0 | K8: 3 | L8: 30001 | M8: 0
A9: 7 | B9: 31|35 | C9: 青铜II | D9: 31 | E9: 1 | F9: 0 | G9: 40000 | H9: 2 | I9: 0 | J9: 0 | K9: 3 | L9: 30001 | M9: 0
A10: 8 | B10: 36|40 | C10: 青铜III | D10: 36 | E10: 1 | F10: 0 | G10: 45000 | H10: 2 | I10: 0 | J10: 0 | K10: 3 | L10: 30001 | M10: 0
A11: 9 | B11: 41|45 | C11: 青铜IV | D11: 41 | E11: 1 | F11: 0 | G11: 50000 | H11: 2 | I11: 0 | J11: 0 | K11: 3 | L11: 30001 | M11: 0
A12: 10 | B12: 46|50 | C12: 青铜V | D12: 46 | E12: 1 | F12: 0 | G12: 55000 | H12: 2 | I12: 0 | J12: 0 | K12: 3 | L12: 30001 | M12: 0
A13: 11 | B13: 51|55 | C13: 白银I | D13: 51 | E13: 1 | F13: 0 | G13: 60000 | H13: 2 | I13: 0 | J13: 0 | K13: 3 | L13: 30001 | M13: 0
A14: 12 | B14: 56|60 | C14: 白银II | D14: 51 | E14: 1 | F14: 0 | G14: 65000 | H14: 2 | I14: 0 | J14: 0 | K14: 3 | L14: 30001 | M14: 0
A15: 13 | B15: 61|65 | C15: 白银III | D15: 51 | E15: 1 | F15: 0 | G15: 70000 | H15: 2 | I15: 0 | J15: 0 | K15: 3 | L15: 30001 | M15: 0
A16: 14 | B16: 66|70 | C16: 白银IV | D16: 51 | E16: 1 | F16: 0 | G16: 75000 | H16: 2 | I16: 0 | J16: 0 | K16: 3 | L16: 30001 | M16: 0
A17: 15 | B17: 71|75 | C17: 白银V | D17: 51 | E17: 1 | F17: 0 | G17: 80000 | H17: 2 | I17: 0 | J17: 0 | K17: 3 | L17: 30001 | M17: 0
A18: 16 | B18: 76|80 | C18: 黄金I | D18: 56 | E18: 1 | F18: 0 | G18: 85000 | H18: 2 | I18: 0 | J18: 0 | K18: 3 | L18: 30001 | M18: 0
A19: 17 | B19: 81|85 | C19: 黄金II | D19: 56 | E19: 1 | F19: 0 | G19: 90000 | H19: 2 | I19: 0 | J19: 0 | K19: 3 | L19: 30001 | M19: 0
A20: 18 | B20: 86|90 | C20: 黄金III | D20: 56 | E20: 1 | F20: 0 | G20: 95000 | H20: 2 | I20: 0 | J20: 0 | K20: 3 | L20: 30001 | M20: 0
A21: 19 | B21: 91|95 | C21: 黄金IV | D21: 56 | E21: 1 | F21: 0 | G21: 100000 | H21: 2 | I21: 0 | J21: 0 | K21: 3 | L21: 30001 | M21: 0
A22: 20 | B22: 96|100 | C22: 黄金V | D22: 56 | E22: 1 | F22: 0 | G22: 105000 | H22: 2 | I22: 0 | J22: 0 | K22: 3 | L22: 30001 | M22: 0
A23: 21 | B23: 101|105 | C23: 铂金I | D23: 76 | E23: 1 | F23: 0 | G23: 110000 | H23: 2 | I23: 0 | J23: 0 | K23: 3 | L23: 30001 | M23: 0
A24: 22 | B24: 106|110 | C24: 铂金II | D24: 76 | E24: 1 | F24: 0 | G24: 115000 | H24: 2 | I24: 0 | J24: 0 | K24: 3 | L24: 30001 | M24: 0
A25: 23 | B25: 111|115 | C25: 铂金III | D25: 76 | E25: 1 | F25: 0 | G25: 120000 | H25: 2 | I25: 0 | J25: 0 | K25: 3 | L25: 30001 | M25: 0
A26: 24 | B26: 116|120 | C26: 铂金IV | D26: 76 | E26: 1 | F26: 0 | G26: 125000 | H26: 2 | I26: 0 | J26: 0 | K26: 3 | L26: 30001 | M26: 0
A27: 25 | B27: 121|125 | C27: 铂金V | D27: 76 | E27: 1 | F27: 0 | G27: 130000 | H27: 2 | I27: 0 | J27: 0 | K27: 3 | L27: 30001 | M27: 0
A28: 26 | B28: 126|130 | C28: 钻石I | D28: 101 | E28: 1 | F28: 0 | G28: 135000 | H28: 2 | I28: 0 | J28: 0 | K28: 3 | L28: 30001 | M28: 0
A29: 27 | B29: 131|135 | C29: 钻石II | D29: 101 | E29: 1 | F29: 0 | G29: 140000 | H29: 2 | I29: 0 | J29: 0 | K29: 3 | L29: 30001 | M29: 0
A30: 28 | B30: 136|140 | C30: 钻石III | D30: 101 | E30: 1 | F30: 0 | G30: 145000 | H30: 2 | I30: 0 | J30: 0 | K30: 3 | L30: 30001 | M30: 0
A31: 29 | B31: 141|145 | C31: 钻石IV | D31: 101 | E31: 1 | F31: 0 | G31: 150000 | H31: 2 | I31: 0 | J31: 0 | K31: 3 | L31: 30001 | M31: 0
A32: 30 | B32: 146|150 | C32: 钻石V | D32: 101 | E32: 1 | F32: 0 | G32: 155000 | H32: 2 | I32: 0 | J32: 0 | K32: 3 | L32: 30001 | M32: 0
A33: 31 | B33: 151|155 | C33: 斗神1星-斗神19星 | D33: 126 | E33: 1 | F33: 0 | G33: 1000000 | H33: 2 | I33: 0 | J33: 0 | K33: 3 | L33: 30001 | M33: 2000
A34: 32 | B34: 156|160 | C34: 斗神20星-斗神49星 | D34: 131 | E34: 1 | F34: 0 | G34: 2000000 | H34: 2 | I34: 0 | J34: 0 | K34: 3 | L34: 30001 | M34: 5000
A35: 33 | B35: 161|9999 | C35: 斗神50星-斗神9999星 | D35: 136 | E35: 1 | F35: 0 | G35: 5000000 | H35: 2 | I35: 0 | J35: 0 | K35: 3 | L35: 30001 | M35: 10000

Sheet 说明
D11: AwardType | E11: 1，金币 2，钻石 3，道具
D12: star2 | E12: 新赛季段位重置

Sheet Sheet3
C4: 5 | E4: |
E7: 1 | F7: 5 | G7: 玄铁I | H7: =E7&$E$4&F7 -> 1|5 | I7: 玄铁I | J7: 1
E8: =E7+$C$4 -> 6 | F8: =F7+$C$4 -> 10 | G8: 玄铁II | H8: =E8&$E$4&F8 -> 6|10 | I8: 玄铁II | J8: 6
E9: =E8+$C$4 -> 11 | F9: =F8+$C$4 -> 15 | G9: 玄铁III | H9: 11|15 | I9: 玄铁III | J9: 11
E10: 16 | F10: =F9+$C$4 -> 20 | G10: 玄铁IV | H10: 16|20 | I10: 玄铁IV | J10: 16
E11: 21 | F11: =F10+$C$4 -> 25 | G11: 玄铁V | H11: 21|25 | I11: 玄铁V | J11: 21
E12: 26 | F12: =F11+$C$4 -> 30 | G12: 青铜I | H12: 26|30 | I12: 青铜I | J12: 26
E13: 31 | F13: =F12+$C$4 -> 35 | G13: 青铜II | H13: 31|35 | I13: 青铜II | J13: 31
E14: 36 | F14: =F13+$C$4 -> 40 | G14: 青铜III | H14: 36|40 | I14: 青铜III | J14: 36
E15: 41 | F15: =F14+$C$4 -> 45 | G15: 青铜IV | H15: 41|45 | I15: 青铜IV | J15: 41
E16: 46 | F16: =F15+$C$4 -> 50 | G16: 青铜V | H16: 46|50 | I16: 青铜V | J16: 46
E17: 51 | F17: =F16+$C$4 -> 55 | G17: 白银I | H17: 51|55 | I17: 白银I | J17: 51
E18: 56 | F18: =F17+$C$4 -> 60 | G18: 白银II | H18: 56|60 | I18: 白银I | J18: 51
E19: 61 | F19: =F18+$C$4 -> 65 | G19: 白银III | H19: 61|65 | I19: 白银I | J19: 51
E20: 66 | F20: =F19+$C$4 -> 70 | G20: 白银IV | H20: 66|70 | I20: 白银I | J20: 51
E21: 71 | F21: =F20+$C$4 -> 75 | G21: 白银V | H21: 71|75 | I21: 白银I | J21: 51
E22: 76 | F22: =F21+$C$4 -> 80 | G22: 黄金I | H22: 76|80 | I22: 白银II | J22: 56
E23: 81 | F23: =F22+$C$4 -> 85 | G23: 黄金II | H23: 81|85 | I23: 白银II | J23: 56
E24: 86 | F24: =F23+$C$4 -> 90 | G24: 黄金III | H24: 86|90 | I24: 白银II | J24: 56
E25: 91 | F25: =F24+$C$4 -> 95 | G25: 黄金IV | H25: 91|95 | I25: 白银II | J25: 56
E26: 96 | F26: =F25+$C$4 -> 100 | G26: 黄金V | H26: 96|100 | I26: 白银II | J26: 56
E27: 101 | F27: =F26+$C$4 -> 105 | G27: 铂金I | H27: 101|105 | I27: 黄金I | J27: 76
E28: 106 | F28: =F27+$C$4 -> 110 | G28: 铂金II | H28: 106|110 | I28: 黄金I | J28: 76
E29: 111 | F29: =F28+$C$4 -> 115 | G29: 铂金III | H29: 111|115 | I29: 黄金I | J29: 76
E30: 116 | F30: =F29+$C$4 -> 120 | G30: 铂金IV | H30: 116|120 | I30: 黄金I | J30: 76
E31: 121 | F31: =F30+$C$4 -> 125 | G31: 铂金V | H31: 121|125 | I31: 黄金I | J31: 76
E32: 126 | F32: =F31+$C$4 -> 130 | G32: 钻石I | H32: 126|130 | I32: 铂金1 | J32: 101
E33: 131 | F33: =F32+$C$4 -> 135 | G33: 钻石II | H33: 131|135 | I33: 铂金1 | J33: 101
E34: 136 | F34: =F33+$C$4 -> 140 | G34: 钻石III | H34: 136|140 | I34: 铂金1 | J34: 101
E35: 141 | F35: =F34+$C$4 -> 145 | G35: 钻石IV | H35: 141|145 | I35: 铂金1 | J35: 101
E36: 146 | F36: =F35+$C$4 -> 150 | G36: 钻石V | H36: 146|150 | I36: 铂金1 | J36: 101
E37: 151 | F37: =F36+$C$4 -> 155 | G37: 斗神1星-斗神19星 | H37: 151|155 | I37: 钻石I | J37: 126
E38: 156 | F38: =F37+$C$4 -> 160 | G38: 斗神20星-斗神49星 | H38: 156|160 | I38: 钻石II | J38: 131
E39: 161 | F39: =F38+$C$4 -> 165 | G39: 斗神50星-斗神9999星 | H39: 161|165 | I39: 钻石III | J39: 136
